[Event "Late-Titled-Tuesday-Blitz-July-09-2024"]
[Site "Chess.com"]
[Date "2024.07.09"]
[Round "2"]
[White "ChessBrainiacOnTwitch"]
[Black "el_sporco"]
[Result "1-0"]
[WhiteElo "2819"]
[BlackElo "2545"]
[TimeControl "180+1"]
[EndTime "14:15:30 PDT"]
[Termination "ChessBrainiacOnTwitch won by resignation"]

1. e4 {[%clk 0:03:00.9]} 1... e5 {[%clk 0:02:58.7]} 2. Nf3 {[%clk 0:03:00.9]}
2... Nc6 {[%clk 0:02:59]} 3. Nc3 {[%clk 0:02:57.6]} 3... Nf6 {[%clk 0:02:58.9]}
4. Bb5 {[%clk 0:02:57.7]} 4... Nd4 {[%clk 0:02:54]} 5. Bc4 {[%clk 0:02:57.6]}
5... Nxf3+ {[%clk 0:02:47.4]} 6. Qxf3 {[%clk 0:02:58.5]} 6... Be7 {[%clk
0:02:47.9]} 7. O-O {[%clk 0:02:56.6]} 7... O-O {[%clk 0:02:47.9]} 8. d3 {[%clk
0:02:54.1]} 8... d6 {[%clk 0:02:47.9]} 9. h3 {[%clk 0:02:54]} 9... Be6 {[%clk
0:02:47.5]} 10. Bb3 {[%clk 0:02:51.9]} 10... c6 {[%clk 0:02:43.2]} 11. Qe2
{[%clk 0:02:46.9]} 11... a5 {[%clk 0:02:41.3]} 12. f4 {[%clk 0:02:44.5]} 12...
exf4 {[%clk 0:02:29.3]} 13. Bxf4 {[%clk 0:02:41.9]} 13... Nd7 {[%clk 0:02:13]}
14. d4 {[%clk 0:02:38.7]} 14... Bxb3 {[%clk 0:02:08.6]} 15. axb3 {[%clk
0:02:39.6]} 15... f5 {[%clk 0:02:03.2]} 16. e5 {[%clk 0:02:37.1]} 16... dxe5
{[%clk 0:02:02.1]} 17. dxe5 {[%clk 0:02:38]} 17... Bc5+ {[%clk 0:01:57.2]} 18.
Kh1 {[%clk 0:02:37.4]} 18... Qe7 {[%clk 0:01:57.7]} 19. e6 {[%clk 0:02:26.4]}
19... Nf6 {[%clk 0:01:54.1]} 20. Rad1 {[%clk 0:02:23.2]} 20... Rad8 {[%clk
0:01:49.6]} 21. Bg5 {[%clk 0:02:15]} 21... Bd4 {[%clk 0:01:41.8]} 22. Rxf5
{[%clk 0:02:12.9]} 22... Bxc3 {[%clk 0:01:41.8]} 23. Rxd8 {[%clk 0:02:11.1]}
23... Rxd8 {[%clk 0:01:39.3]} 24. bxc3 {[%clk 0:02:11.5]} 24... Rd6 {[%clk
0:01:28.1]} 25. Re5 {[%clk 0:01:49.8]} 25... h6 {[%clk 0:01:25.7]} 26. Bxf6
{[%clk 0:01:48.2]} 26... gxf6 {[%clk 0:01:23.7]} 27. Qg4+ {[%clk 0:01:46.4]}
27... Kf8 {[%clk 0:01:21.4]} 28. Re1 {[%clk 0:01:44.8]} 28... Ke8 {[%clk
0:01:12.9]} 29. Qg8+ {[%clk 0:01:41.2]} 29... Qf8 {[%clk 0:01:13]} 30. Qg6+
{[%clk 0:01:39.2]} 30... Ke7 {[%clk 0:01:10.3]} 31. Qh7+ {[%clk 0:01:39.2]}
31... Ke8 {[%clk 0:01:09.4]} 32. e7 {[%clk 0:01:36.2]} 1-0

[Event "Late-Titled-Tuesday-Blitz-July-09-2024"]
[Site "Chess.com"]
[Date "2024.07.09"]
[Round "2"]
[White "secretworker2027"]
[Black "yujiarun18"]
[Result "1-0"]
[WhiteElo "2691"]
[BlackElo "2238"]
[TimeControl "180+1"]
[EndTime "14:15:30 PDT"]
[Termination "secretworker2027 won by resignation"]

1. e4 {[%clk 0:03:00.9]} 1... c5 {[%clk 0:02:59.7]} 2. Nf3 {[%clk 0:03:00.4]}
2... d6 {[%clk 0:03:00.2]} 3. d4 {[%clk 0:03:00]} 3... cxd4 {[%clk 0:03:00.9]}
4. Nxd4 {[%clk 0:03:00.5]} 4... Nf6 {[%clk 0:03:00.5]} 5. Nc3 {[%clk 0:03:01.1]}
5... a6 {[%clk 0:03:00.5]} 6. Rg1 {[%clk 0:03:01.5]} 6... e5 {[%clk 0:02:59.7]}
7. Nb3 {[%clk 0:03:01.1]} 7... h5 {[%clk 0:02:58.3]} 8. Bg5 {[%clk 0:02:50.8]}
8... Be7 {[%clk 0:02:48.2]} 9. Qd2 {[%clk 0:02:50.5]} 9... Be6 {[%clk
0:02:39.4]} 10. O-O-O {[%clk 0:02:48.1]} 10... Nbd7 {[%clk 0:02:23.3]} 11. Kb1
{[%clk 0:02:46.9]} 11... Qc7 {[%clk 0:02:14.1]} 12. f3 {[%clk 0:02:45.6]} 12...
b5 {[%clk 0:02:13.1]} 13. g4 {[%clk 0:02:31.6]} 13... hxg4 {[%clk 0:02:08.7]}
14. fxg4 {[%clk 0:02:31.8]} 14... b4 {[%clk 0:01:51.8]} 15. Nd5 {[%clk
0:02:29.8]} 15... Bxd5 {[%clk 0:01:44.7]} 16. Bxf6 {[%clk 0:02:30.2]} 16... Nxf6
{[%clk 0:01:42.6]} 17. exd5 {[%clk 0:02:30.4]} 17... a5 {[%clk 0:01:36.3]} 18.
g5 {[%clk 0:02:29.3]} 18... Ne4 {[%clk 0:01:33]} 19. Bb5+ {[%clk 0:02:28.4]}
19... Kf8 {[%clk 0:01:27.9]} 20. Qe3 {[%clk 0:02:28.4]} 20... Rxh2 {[%clk
0:01:21.8]} 21. Qxe4 {[%clk 0:02:26.8]} 21... Rc8 {[%clk 0:01:18.8]} 22. Bc6
{[%clk 0:02:23.4]} 22... a4 {[%clk 0:01:12.1]} 23. Nc1 {[%clk 0:02:22]} 23...
Qb6 {[%clk 0:01:03.6]} 24. Rdf1 {[%clk 0:02:17.6]} 24... b3 {[%clk 0:01:01.2]}
25. axb3 {[%clk 0:02:17.3]} 25... axb3 {[%clk 0:01:00.6]} 26. Nxb3 {[%clk
0:02:17.7]} 26... Rf2 {[%clk 0:00:51.3]} 27. Qh4 {[%clk 0:02:06.1]} 27... Rxf1+
{[%clk 0:00:29.4]} 28. Rxf1 {[%clk 0:02:07]} 28... Kg8 {[%clk 0:00:29.4]} 29.
Rh1 {[%clk 0:02:06.6]} 1-0

[Event "Late-Titled-Tuesday-Blitz-July-09-2024"]
[Site "Chess.com"]
[Date "2024.07.09"]
[Round "2"]
[White "maurovargas01"]
[Black "MarkoPe"]
[Result "0-1"]
[WhiteElo "1945"]
[BlackElo "2427"]
[TimeControl "180+1"]
[EndTime "14:15:37 PDT"]
[Termination "MarkoPe won by checkmate"]

1. e4 {[%clk 0:03:00.8]} 1... c6 {[%clk 0:02:56.6]} 2. Nc3 {[%clk 0:03:00.8]}
2... d6 {[%clk 0:02:55.6]} 3. d3 {[%clk 0:03:01.1]} 3... Nd7 {[%clk 0:02:56.1]}
4. f4 {[%clk 0:03:01.3]} 4... Ngf6 {[%clk 0:02:56.7]} 5. Nf3 {[%clk 0:03:02.1]}
5... g6 {[%clk 0:02:57.1]} 6. g3 {[%clk 0:03:02.4]} 6... Bg7 {[%clk 0:02:57.5]}
7. Bg2 {[%clk 0:03:02.7]} 7... O-O {[%clk 0:02:58]} 8. O-O {[%clk 0:03:02.7]}
8... e5 {[%clk 0:02:58.6]} 9. f5 {[%clk 0:03:01.2]} 9... Qb6+ {[%clk 0:02:56.7]}
10. Kh1 {[%clk 0:02:59.3]} 10... d5 {[%clk 0:02:57]} 11. fxg6 {[%clk 0:02:56.8]}
11... hxg6 {[%clk 0:02:56.5]} 12. exd5 {[%clk 0:02:52.1]} 12... cxd5 {[%clk
0:02:56.4]} 13. d4 {[%clk 0:02:40.5]} 13... e4 {[%clk 0:02:54.2]} 14. Ne5 {[%clk
0:02:40.4]} 14... Re8 {[%clk 0:02:42.3]} 15. Nxd7 {[%clk 0:02:39.7]} 15... Bxd7
{[%clk 0:02:43.2]} 16. Bg5 {[%clk 0:02:36.3]} 16... Ng4 {[%clk 0:02:36.8]} 17.
Nxd5 {[%clk 0:02:19.6]} 17... Qxd4 {[%clk 0:02:32.8]} 18. Qxd4 {[%clk
0:02:15.9]} 18... Bxd4 {[%clk 0:02:33.7]} 19. Nc7 {[%clk 0:02:14.1]} 19... Nf2+
{[%clk 0:02:26.4]} 20. Rxf2 {[%clk 0:02:08.6]} 20... Bxf2 {[%clk 0:02:27.3]} 21.
Nxa8 {[%clk 0:02:09]} 21... Rxa8 {[%clk 0:02:27.3]} 22. Bxe4 {[%clk 0:02:08.8]}
22... Bc6 {[%clk 0:02:26.3]} 23. Bxc6 {[%clk 0:02:08.1]} 23... bxc6 {[%clk
0:02:27.2]} 24. Rd1 {[%clk 0:02:01.7]} 24... Rb8 {[%clk 0:02:22.1]} 25. Bf6
{[%clk 0:01:58.1]} 25... Bb6 {[%clk 0:02:18.3]} 26. Kg2 {[%clk 0:01:54.6]} 26...
Re8 {[%clk 0:02:15.2]} 27. Rd2 {[%clk 0:01:42.7]} 27... Re6 {[%clk 0:02:10.9]}
28. Bc3 {[%clk 0:01:34.9]} 28... f5 {[%clk 0:02:07.3]} 29. Rd7 {[%clk
0:01:31.7]} 29... Kf8 {[%clk 0:01:57.9]} 30. Bb4+ {[%clk 0:01:21.3]} 30... Ke8
{[%clk 0:01:56.8]} 31. Rh7 {[%clk 0:01:16.4]} 31... Re2+ {[%clk 0:01:54.9]} 32.
Kh3 {[%clk 0:01:15.5]} 32... Rxc2 {[%clk 0:01:54.8]} 33. Bc3 {[%clk 0:01:09.7]}
33... Bg1 {[%clk 0:01:52.1]} 34. Rg7 {[%clk 0:01:03.2]} 34... Rxh2# {[%clk
0:01:49.9]} 0-1

[Event "Late-Titled-Tuesday-Blitz-July-09-2024"]
[Site "Chess.com"]
[Date "2024.07.09"]
[Round "2"]
[White "purpurice"]
[Black "bubeliang"]
[Result "0-1"]
[WhiteElo "2544"]
[BlackElo "2819"]
[TimeControl "180+1"]
[EndTime "14:15:47 PDT"]
[Termination "bubeliang won by resignation"]

1. d4 {[%clk 0:03:00.9]} 1... d5 {[%clk 0:02:59.3]} 2. Nc3 {[%clk 0:02:59]} 2...
Nf6 {[%clk 0:02:50.1]} 3. Bf4 {[%clk 0:02:59.1]} 3... a6 {[%clk 0:02:42]} 4. e3
{[%clk 0:02:51.5]} 4... b5 {[%clk 0:02:40.1]} 5. Nf3 {[%clk 0:02:49.6]} 5... Bb7
{[%clk 0:02:36.8]} 6. Bd3 {[%clk 0:02:48.3]} 6... e6 {[%clk 0:02:36.5]} 7. O-O
{[%clk 0:02:47]} 7... c5 {[%clk 0:02:36.5]} 8. dxc5 {[%clk 0:02:45.6]} 8... Bxc5
{[%clk 0:02:36.1]} 9. h3 {[%clk 0:02:43.1]} 9... O-O {[%clk 0:02:35.8]} 10. a4
{[%clk 0:02:39.9]} 10... b4 {[%clk 0:02:35]} 11. Ne2 {[%clk 0:02:40.4]} 11...
Bd6 {[%clk 0:02:31.8]} 12. c4 {[%clk 0:02:27.1]} 12... bxc3 {[%clk 0:02:23.2]}
13. bxc3 {[%clk 0:02:24.3]} 13... Nc6 {[%clk 0:02:22.5]} 14. Rb1 {[%clk
0:02:21]} 14... Rb8 {[%clk 0:02:21.1]} 15. Bxd6 {[%clk 0:02:12.7]} 15... Qxd6
{[%clk 0:02:09.5]} 16. Ned4 {[%clk 0:02:06.8]} 16... Ne7 {[%clk 0:01:58.6]} 17.
Rb3 {[%clk 0:01:54.9]} 17... e5 {[%clk 0:01:58.1]} 18. Nf5 {[%clk 0:01:55.3]}
18... Nxf5 {[%clk 0:01:57.5]} 19. Bxf5 {[%clk 0:01:56.2]} 19... Bc6 {[%clk
0:01:57.9]} 20. c4 {[%clk 0:01:44.6]} 20... Bxa4 {[%clk 0:01:53.3]} 21. Rxb8
{[%clk 0:01:39.1]} 21... Bxd1 {[%clk 0:01:52.8]} 22. Rxf8+ {[%clk 0:01:40]}
22... Qxf8 {[%clk 0:01:53.7]} 23. Rxd1 {[%clk 0:01:40.9]} 23... dxc4 {[%clk
0:01:53.7]} 24. Nxe5 {[%clk 0:01:40.7]} 24... g6 {[%clk 0:01:53.5]} 25. Bc2
{[%clk 0:01:33.7]} 25... Qc5 {[%clk 0:01:52.7]} 26. Nf3 {[%clk 0:01:26.4]} 26...
a5 {[%clk 0:01:51.1]} 27. Rd8+ {[%clk 0:01:21.9]} 27... Kg7 {[%clk 0:01:48.1]}
28. Nd4 {[%clk 0:01:22.8]} 28... Qc7 {[%clk 0:01:32.3]} 29. Ra8 {[%clk
0:01:17.2]} 29... Nd5 {[%clk 0:01:30.8]} 30. Nb5 {[%clk 0:01:11.5]} 30... Qb7
{[%clk 0:01:27]} 31. Rxa5 {[%clk 0:01:06.8]} 31... Qb6 {[%clk 0:01:23.4]} 0-1

[Event "Late-Titled-Tuesday-Blitz-July-09-2024"]
[Site "Chess.com"]
[Date "2024.07.09"]
[Round "2"]
[White "mbachez"]
[Black "MatthewG-p4p"]
[Result "0-1"]
[WhiteElo "2611"]
[BlackElo "2925"]
[TimeControl "180+1"]
[EndTime "14:15:51 PDT"]
[Termination "MatthewG-p4p won by resignation"]

1. e4 {[%clk 0:02:54.9]} 1... e6 {[%clk 0:02:58.7]} 2. d4 {[%clk 0:02:54.4]}
2... d5 {[%clk 0:02:58.8]} 3. Nd2 {[%clk 0:02:53]} 3... a6 {[%clk 0:02:55.8]} 4.
Ngf3 {[%clk 0:02:52.4]} 4... Nf6 {[%clk 0:02:53.3]} 5. e5 {[%clk 0:02:52.5]}
5... Nfd7 {[%clk 0:02:52.1]} 6. Bd3 {[%clk 0:02:52.7]} 6... c5 {[%clk
0:02:50.8]} 7. c3 {[%clk 0:02:53.1]} 7... Nc6 {[%clk 0:02:50.4]} 8. O-O {[%clk
0:02:53.3]} 8... g5 {[%clk 0:02:50.7]} 9. Nb3 {[%clk 0:02:53.7]} 9... c4 {[%clk
0:02:46.1]} 10. Nxg5 {[%clk 0:02:43.7]} 10... cxd3 {[%clk 0:02:45.8]} 11. Qh5
{[%clk 0:02:32.4]} 11... Qe7 {[%clk 0:02:42.1]} 12. f4 {[%clk 0:02:32.5]} 12...
h6 {[%clk 0:02:35.5]} 13. f5 {[%clk 0:02:31.9]} 13... exf5 {[%clk 0:02:33.1]}
14. e6 {[%clk 0:02:16.1]} 14... Nf6 {[%clk 0:02:33.2]} 15. exf7+ {[%clk
0:02:16.1]} 15... Kd8 {[%clk 0:02:33.2]} 16. Qh3 {[%clk 0:02:10.6]} 16... f4
{[%clk 0:02:16.3]} 17. Qh4 {[%clk 0:02:08.2]} 17... Ne4 {[%clk 0:02:16.6]} 18.
Bxf4 {[%clk 0:01:59.9]} 18... Nxg5 {[%clk 0:02:14.4]} 19. Rae1 {[%clk
0:01:43.1]} 19... Ne4 {[%clk 0:02:14.2]} 20. Qh5 {[%clk 0:01:43.2]} 20... Be6
{[%clk 0:02:12.6]} 21. Be3 {[%clk 0:01:27.1]} 21... Rh7 {[%clk 0:02:00.1]} 22.
Nc5 {[%clk 0:01:22.4]} 22... Nxc5 {[%clk 0:01:52.6]} 23. dxc5 {[%clk 0:01:22.5]}
23... Rxf7 {[%clk 0:01:51.8]} 24. Rxf7 {[%clk 0:01:15.4]} 24... Qxf7 {[%clk
0:01:50.4]} 25. Qd1 {[%clk 0:01:12.7]} 25... Qg6 {[%clk 0:01:42.4]} 26. Rf1
{[%clk 0:01:10.9]} 26... Kd7 {[%clk 0:01:38.8]} 27. Qf3 {[%clk 0:01:08.3]} 27...
Be7 {[%clk 0:01:38.6]} 28. Re1 {[%clk 0:00:55.7]} 28... Rf8 {[%clk 0:01:34.5]}
29. Qd1 {[%clk 0:00:55.7]} 29... Ne5 {[%clk 0:01:34.1]} 30. Kh1 {[%clk 0:00:53]}
30... Bg4 {[%clk 0:01:33.1]} 31. Qd2 {[%clk 0:00:52.3]} 31... Nf3 {[%clk
0:01:32.5]} 0-1

[Event "Late-Titled-Tuesday-Blitz-July-09-2024"]
[Site "Chess.com"]
[Date "2024.07.09"]
[Round "2"]
[White "XDPS"]
[Black "Antek_Radzimski"]
[Result "1-0"]
[WhiteElo "2875"]
[BlackElo "2575"]
[TimeControl "180+1"]
[EndTime "14:15:55 PDT"]
[Termination "XDPS won by resignation"]

1. d4 {[%clk 0:03:00.9]} 1... Nf6 {[%clk 0:02:59.7]} 2. Nf3 {[%clk 0:03:01.3]}
2... e6 {[%clk 0:02:59.1]} 3. Bf4 {[%clk 0:03:01.1]} 3... d5 {[%clk 0:02:57.6]}
4. e3 {[%clk 0:03:01.5]} 4... c5 {[%clk 0:02:58.2]} 5. Nbd2 {[%clk 0:03:01.8]}
5... Nc6 {[%clk 0:02:58.8]} 6. c3 {[%clk 0:03:02.1]} 6... h6 {[%clk 0:02:58.5]}
7. Ne5 {[%clk 0:03:00.9]} 7... Bd6 {[%clk 0:02:55.5]} 8. Bd3 {[%clk 0:03:00.7]}
8... Qc7 {[%clk 0:02:50.2]} 9. Ndf3 {[%clk 0:03:00.7]} 9... Nd7 {[%clk
0:02:42.1]} 10. Bb5 {[%clk 0:02:51.6]} 10... O-O {[%clk 0:02:35.2]} 11. Bxc6
{[%clk 0:02:42.2]} 11... bxc6 {[%clk 0:02:34.2]} 12. Qa4 {[%clk 0:02:42.8]}
12... cxd4 {[%clk 0:02:22.8]} 13. cxd4 {[%clk 0:02:40.3]} 13... Nxe5 {[%clk
0:02:08.1]} 14. Bxe5 {[%clk 0:02:39.6]} 14... Bxe5 {[%clk 0:01:44.2]} 15. Nxe5
{[%clk 0:02:36]} 15... Qb6 {[%clk 0:01:33.1]} 16. Qxc6 {[%clk 0:02:24.7]} 16...
Qxb2 {[%clk 0:01:27]} 17. O-O {[%clk 0:02:24.3]} 17... Rb8 {[%clk 0:01:18.4]}
18. h3 {[%clk 0:02:18.7]} 18... Bb7 {[%clk 0:01:13.2]} 19. Qa4 {[%clk
0:02:17.8]} 19... Rfc8 {[%clk 0:00:36.5]} 20. Rab1 {[%clk 0:02:10.9]} 20... Qc3
{[%clk 0:00:32.1]} 21. Qxa7 {[%clk 0:02:04.8]} 21... Qc7 {[%clk 0:00:29.4]} 22.
a4 {[%clk 0:01:56.3]} 22... f6 {[%clk 0:00:01.6]} 23. Nd3 {[%clk 0:01:56.1]}
23... Qc2 {[%clk 0:00:02.3]} 24. Nc5 {[%clk 0:01:54.1]} 1-0

[Event "Late-Titled-Tuesday-Blitz-July-09-2024"]
[Site "Chess.com"]
[Date "2024.07.09"]
[Round "2"]
[White "ImportedItalianMaple"]
[Black "Vaporwaffle94"]
[Result "1-0"]
[WhiteElo "2497"]
[BlackElo "2273"]
[TimeControl "180+1"]
[EndTime "14:16:01 PDT"]
[Termination "ImportedItalianMaple won by resignation"]

1. d4 {[%clk 0:03:00.9]} 1... e6 {[%clk 0:02:58.4]} 2. Nf3 {[%clk 0:02:54.6]}
2... Nf6 {[%clk 0:02:57.9]} 3. g3 {[%clk 0:02:54.6]} 3... c5 {[%clk 0:02:50.5]}
4. Bg2 {[%clk 0:02:54.6]} 4... b6 {[%clk 0:02:50.9]} 5. O-O {[%clk 0:02:52.3]}
5... Bb7 {[%clk 0:02:51]} 6. c4 {[%clk 0:02:51.2]} 6... cxd4 {[%clk 0:02:50.8]}
7. Qxd4 {[%clk 0:02:50.5]} 7... Bxf3 {[%clk 0:02:49.7]} 8. Bxf3 {[%clk
0:02:48.7]} 8... Nc6 {[%clk 0:02:50.6]} 9. Qf4 {[%clk 0:02:44.1]} 9... Be7
{[%clk 0:02:48.1]} 10. Nc3 {[%clk 0:02:43.4]} 10... O-O {[%clk 0:02:47.6]} 11.
Rd1 {[%clk 0:02:38.1]} 11... Rc8 {[%clk 0:02:47.2]} 12. b3 {[%clk 0:02:28.9]}
12... Qc7 {[%clk 0:02:36.3]} 13. Qxc7 {[%clk 0:02:15]} 13... Rxc7 {[%clk
0:02:37.2]} 14. Nb5 {[%clk 0:02:05.2]} 14... Rcc8 {[%clk 0:02:35.4]} 15. Nd6
{[%clk 0:02:01.5]} 15... Bxd6 {[%clk 0:02:32.3]} 16. Rxd6 {[%clk 0:02:02.4]}
16... Rfd8 {[%clk 0:02:32.2]} 17. Bg5 {[%clk 0:01:57.4]} 17... h6 {[%clk
0:02:31.2]} 18. Bxf6 {[%clk 0:01:56.5]} 18... gxf6 {[%clk 0:02:32.1]} 19. Rad1
{[%clk 0:01:56.4]} 19... Ne5 {[%clk 0:02:31.6]} 20. Be4 {[%clk 0:01:51.6]} 20...
f5 {[%clk 0:02:30.6]} 21. Bg2 {[%clk 0:01:44.4]} 21... b5 {[%clk 0:02:30.2]} 22.
f4 {[%clk 0:01:39.4]} 22... Ng4 {[%clk 0:02:29.8]} 23. cxb5 {[%clk 0:01:35.5]}
23... Rc2 {[%clk 0:02:28.4]} 24. Bf3 {[%clk 0:01:33.6]} 24... Nf6 {[%clk
0:02:23.8]} 25. a4 {[%clk 0:01:30.1]} 25... Rb2 {[%clk 0:02:21.8]} 26. R1d3
{[%clk 0:01:30.5]} 26... Rc8 {[%clk 0:02:20.5]} 27. Ra6 {[%clk 0:01:20.3]} 27...
d5 {[%clk 0:02:15.2]} 28. Rxa7 {[%clk 0:01:13.3]} 28... Rc1+ {[%clk 0:02:13.7]}
29. Kf2 {[%clk 0:01:12]} 29... Rcb1 {[%clk 0:02:14.6]} 30. b6 {[%clk 0:01:08.4]}
30... Rxb3 {[%clk 0:02:13.9]} 31. Rxb3 {[%clk 0:01:08.7]} 31... Rxb3 {[%clk
0:02:13.6]} 32. b7 {[%clk 0:01:07.4]} 32... Kg7 {[%clk 0:02:13.9]} 33. a5 {[%clk
0:01:07.7]} 33... Nd7 {[%clk 0:02:09.3]} 34. a6 {[%clk 0:01:07.9]} 34... Kf6
{[%clk 0:02:04.9]} 35. Ra8 {[%clk 0:01:04.8]} 35... Ke7 {[%clk 0:02:03.9]} 36.
Rh8 {[%clk 0:00:55.5]} 36... d4 {[%clk 0:01:59.4]} 37. a7 {[%clk 0:00:52.8]}
37... d3 {[%clk 0:01:58.2]} 38. a8=Q {[%clk 0:00:51.6]} 38... d2 {[%clk
0:01:57.8]} 39. Re8+ {[%clk 0:00:30.4]} 39... Kf6 {[%clk 0:01:57.4]} 40. Qd8+
{[%clk 0:00:29.2]} 1-0

[Event "Late-Titled-Tuesday-Blitz-July-09-2024"]
[Site "Chess.com"]
[Date "2024.07.09"]
[Round "2"]
[White "oskariot"]
[Black "Truequitos"]
[Result "1-0"]
[WhiteElo "2805"]
[BlackElo "2542"]
[TimeControl "180+1"]
[EndTime "14:16:07 PDT"]
[Termination "oskariot won by resignation"]

1. e4 {[%clk 0:03:00.9]} 1... e6 {[%clk 0:02:59.7]} 2. d4 {[%clk 0:03:00.8]}
2... d5 {[%clk 0:03:00]} 3. Nd2 {[%clk 0:03:01.4]} 3... c5 {[%clk 0:03:00.1]} 4.
exd5 {[%clk 0:03:01.6]} 4... Qxd5 {[%clk 0:03:01]} 5. Ngf3 {[%clk 0:03:01.8]}
5... cxd4 {[%clk 0:03:01.3]} 6. g3 {[%clk 0:03:02.4]} 6... Nf6 {[%clk
0:02:58.7]} 7. Bg2 {[%clk 0:03:02.4]} 7... Nc6 {[%clk 0:02:55.8]} 8. O-O {[%clk
0:03:02]} 8... Be7 {[%clk 0:02:52.9]} 9. Nb3 {[%clk 0:03:00.3]} 9... Qh5 {[%clk
0:02:38.4]} 10. Nfxd4 {[%clk 0:02:59]} 10... Qxd1 {[%clk 0:02:38.3]} 11. Rxd1
{[%clk 0:02:59.9]} 11... Nxd4 {[%clk 0:02:23.7]} 12. Nxd4 {[%clk 0:03:00.8]}
12... a6 {[%clk 0:02:24.3]} 13. a4 {[%clk 0:02:59.2]} 13... O-O {[%clk
0:02:23.4]} 14. Bf4 {[%clk 0:02:46.5]} 14... Nd7 {[%clk 0:02:17.9]} 15. Nb3
{[%clk 0:02:38.4]} 15... e5 {[%clk 0:02:11]} 16. Be3 {[%clk 0:02:38.2]} 16...
Rb8 {[%clk 0:02:04.1]} 17. a5 {[%clk 0:02:32.7]} 17... f5 {[%clk 0:01:48.8]} 18.
Bd5+ {[%clk 0:02:10.3]} 18... Kh8 {[%clk 0:01:47.8]} 19. f4 {[%clk 0:02:11]}
19... Bf6 {[%clk 0:01:41.3]} 20. c3 {[%clk 0:01:28.6]} 20... Re8 {[%clk
0:01:26.2]} 21. Re1 {[%clk 0:01:21.9]} 21... Nf8 {[%clk 0:01:21.8]} 22. fxe5
{[%clk 0:01:19]} 22... Bxe5 {[%clk 0:01:05.9]} 23. Bf4 {[%clk 0:01:09]} 23...
Ng6 {[%clk 0:01:05.9]} 24. Bf7 {[%clk 0:01:08.7]} 24... Rf8 {[%clk 0:00:56]} 25.
Bxe5 {[%clk 0:01:02.3]} 1-0

[Event "Late-Titled-Tuesday-Blitz-July-09-2024"]
[Site "Chess.com"]
[Date "2024.07.09"]
[Round "2"]
[White "TC2304"]
[Black "cansun"]
[Result "1-0"]
[WhiteElo "2349"]
[BlackElo "2521"]
[TimeControl "180+1"]
[EndTime "14:16:07 PDT"]
[Termination "TC2304 won by resignation"]

1. d4 {[%clk 0:03:00.9]} 1... Nf6 {[%clk 0:02:59.9]} 2. Nf3 {[%clk 0:03:01.4]}
2... e6 {[%clk 0:02:59.6]} 3. Bf4 {[%clk 0:02:59.2]} 3... d5 {[%clk 0:02:59.8]}
4. e3 {[%clk 0:02:59.2]} 4... Bd6 {[%clk 0:03:00.3]} 5. Bg3 {[%clk 0:02:58.1]}
5... O-O {[%clk 0:03:00.2]} 6. Nbd2 {[%clk 0:02:55.6]} 6... c5 {[%clk
0:03:00.6]} 7. c3 {[%clk 0:02:55.5]} 7... Qc7 {[%clk 0:03:00.8]} 8. Bd3 {[%clk
0:02:53.8]} 8... Nbd7 {[%clk 0:02:59.2]} 9. O-O {[%clk 0:02:50.8]} 9... Bxg3
{[%clk 0:02:59]} 10. hxg3 {[%clk 0:02:51.7]} 10... e5 {[%clk 0:02:59.7]} 11.
dxe5 {[%clk 0:02:51.7]} 11... Nxe5 {[%clk 0:03:00.6]} 12. Nxe5 {[%clk
0:02:49.1]} 12... Qxe5 {[%clk 0:03:01.5]} 13. Re1 {[%clk 0:02:44.1]} 13... Bg4
{[%clk 0:02:53.9]} 14. Qc2 {[%clk 0:02:43.4]} 14... Qh5 {[%clk 0:02:37.1]} 15.
e4 {[%clk 0:02:38.6]} 15... dxe4 {[%clk 0:02:37.1]} 16. Nxe4 {[%clk 0:02:38.4]}
16... Nxe4 {[%clk 0:02:36.5]} 17. Rxe4 {[%clk 0:02:15.2]} 17... h6 {[%clk
0:02:25.9]} 18. Rae1 {[%clk 0:02:11.3]} 18... Be6 {[%clk 0:02:04.9]} 19. Re5
{[%clk 0:02:07.6]} 19... g5 {[%clk 0:01:41.3]} 20. Rxc5 {[%clk 0:01:53.2]} 20...
Rad8 {[%clk 0:01:38.3]} 21. Bf5 {[%clk 0:01:31.4]} 21... Bd5 {[%clk 0:01:12.7]}
22. g4 {[%clk 0:01:23.6]} 22... Qh4 {[%clk 0:01:12.6]} 23. Re3 {[%clk
0:01:24.1]} 23... Rfe8 {[%clk 0:01:06.2]} 24. Rxd5 {[%clk 0:01:16.9]} 24... Rxe3
{[%clk 0:00:51]} 25. Rxd8+ {[%clk 0:01:16.6]} 25... Kg7 {[%clk 0:00:51.6]} 26.
Qd2 {[%clk 0:01:17.2]} 1-0

[Event "Late-Titled-Tuesday-Blitz-July-09-2024"]
[Site "Chess.com"]
[Date "2024.07.09"]
[Round "2"]
[White "MarcoRiehle"]
[Black "HPanesso"]
[Result "1-0"]
[WhiteElo "2855"]
[BlackElo "2557"]
[TimeControl "180+1"]
[EndTime "14:16:10 PDT"]
[Termination "MarcoRiehle won on time"]

1. e4 {[%clk 0:03:00]} 1... e5 {[%clk 0:02:58.1]} 2. Nf3 {[%clk 0:03:00.3]} 2...
Nc6 {[%clk 0:02:57.7]} 3. Bc4 {[%clk 0:03:01]} 3... Bc5 {[%clk 0:02:56.8]} 4.
O-O {[%clk 0:03:00.4]} 4... Nf6 {[%clk 0:02:55.5]} 5. d4 {[%clk 0:03:00.6]} 5...
Nxd4 {[%clk 0:02:51.4]} 6. Nxe5 {[%clk 0:02:56.3]} 6... O-O {[%clk 0:02:47]} 7.
Be3 {[%clk 0:02:54.5]} 7... Ne6 {[%clk 0:02:42.3]} 8. Bxe6 {[%clk 0:02:54.5]}
8... Bxe3 {[%clk 0:02:36.7]} 9. Bxf7+ {[%clk 0:02:54]} 9... Kh8 {[%clk
0:02:01.7]} 10. Bb3 {[%clk 0:02:52.3]} 10... Qe7 {[%clk 0:01:57.3]} 11. Nf7+
{[%clk 0:02:49.6]} 11... Rxf7 {[%clk 0:01:56.1]} 12. Bxf7 {[%clk 0:02:50.5]}
12... Qxf7 {[%clk 0:01:48.3]} 13. fxe3 {[%clk 0:02:50.1]} 13... Qe7 {[%clk
0:01:46.4]} 14. Nc3 {[%clk 0:02:49.3]} 14... c6 {[%clk 0:01:28.3]} 15. Qd4
{[%clk 0:02:44.5]} 15... d5 {[%clk 0:00:41.6]} 16. exd5 {[%clk 0:02:41.7]} 16...
cxd5 {[%clk 0:00:39]} 17. Nxd5 {[%clk 0:02:40.2]} 17... Nxd5 {[%clk 0:00:36.5]}
18. Qxd5 {[%clk 0:02:38.9]} 18... Qxe3+ {[%clk 0:00:35]} 19. Kh1 {[%clk
0:02:37.6]} 19... Bg4 {[%clk 0:00:26.9]} 20. Qxb7 {[%clk 0:02:29.2]} 20... Rg8
{[%clk 0:00:19.7]} 21. Rae1 {[%clk 0:02:27]} 21... Qd2 {[%clk 0:00:16.4]} 22.
Qxa7 {[%clk 0:02:13.3]} 22... Bh5 {[%clk 0:00:15.9]} 23. Qc5 {[%clk 0:02:08.9]}
23... Bg6 {[%clk 0:00:15.1]} 24. Qc4 {[%clk 0:02:05.7]} 24... h6 {[%clk
0:00:13.3]} 25. a4 {[%clk 0:02:03.8]} 25... Bxc2 {[%clk 0:00:11.6]} 26. Re2
{[%clk 0:01:59.5]} 1-0